lending/lending_fUSD_20260102
["ID","MTS","AMOUNT","RATE_DAILY","PERIOD"]
[400321797,1767371440728,-3756.35407972,0.00029616,2]
[400321798,1767371440739,-501.43190772,0.00029822,2]
[400321799,1767371440750,-498.56809228,0.00029822,2]
[400321800,1767371440760,-258.19190772,0.00029971,11]
[400321801,1767371440772,-1741.80809228,0.00029971,11]
[400321802,1767371440781,-163.45327632,0.00030037,2]
[400321803,1767371440794,-2000.0,0.00030098,30]
[400321804,1767371440803,-2000.0,0.00030125,2]
[400321805,1767371440813,-207.32678779,0.00030126,2]
[400321806,1767371440823,-2000.0,0.00030126,3]
[400321807,1767371440832,-2436.663,0.000306,2]
[400321808,1767371440842,-506.34585956,0.000306,2]
[400321809,1767371440854,-1239.43669989,0.000306,2]
[400321810,1767371440866,-645.04788305,0.000306,2]
[400321811,1767371440878,-45.8325575,0.000306,2]
[400321812,1767371440888,-700.35254152,0.000306,2]
[400321813,1767371440900,-826.28059818,0.000306,2]
[400321814,1767371442238,-637.0,0.00029972,11]
[400321815,1767371442249,-910.0268603,0.000306,2]
[400321816,1767371442259,-1000.0,0.00030797,2]
[400321817,1767371442269,-386.95,0.00031,2]
[400321818,1767371442279,-803.3,0.00031074,2]
[400321819,1767371442288,-155.34,0.00031394,120]
[400321820,1767371442298,-334.65,0.00031723,30]
[400321821,1767371442308,-2056.40342792,0.00031754,2]
[400321822,1767371442318,-1756.82528904,0.000318,2]
[400321835,1767371444013,-637.0,0.00030582,12]
[400321836,1767371444022,-637.0,0.00031192,13]
[400321837,1767371444032,-243.17471096,0.000318,2]
[400321838,1767371444042,-637.0,0.00031802,13]
[400321839,1767371444051,-4788.86552605,0.0003181,2]
[400321840,1767371444060,-1000.0,0.0003191,2]
[400321841,1767371444070,-600.0,0.00032,120]
[400321842,1767371444080,-163.45327626,0.00032161,2]
[400321843,1767371444090,-637.0,0.00032412,14]
[400321844,1767371444100,-803.3,0.00032486,2]
[400321845,1767371444110,-350.0,0.000325,7]
[400321846,1767371444120,-660.52,0.00032702,2]
[400321847,1767371444130,-660.52,0.00032702,2]
[400321848,1767371444139,-660.52,0.00032702,2]
[400321849,1767371444149,-660.52,0.00032702,2]
[400321850,1767371444159,-660.52,0.00032702,2]
[400321851,1767371444168,-1234.77764195,0.00032702,2]
[400321852,1767371444179,-86.26235805,0.00032702,2]
[400321853,1767371444189,-660.52,0.00032702,2]
[400321854,1767371444199,-660.52,0.00032702,2]
[400321855,1767371444208,-660.52,0.00032702,2]
[400321856,1767371444218,-680.59,0.00032702,2]
[400321857,1767371444227,-230.65271381,0.00032702,2]
[400321858,1767371444240,-429.86728619,0.00032702,2]
[400321859,1767371444250,-660.52,0.00032702,2]
[400321860,1767371444261,-660.52,0.00032702,2]
[400321861,1767371444271,-660.52,0.00032702,2]
[400321862,1767371444283,-660.52,0.00032702,2]
[400321863,1767371444292,-660.52,0.00032702,2]
[400321864,1767371444302,-3801.11,0.00032724,2]
[400321865,1767371444312,-1000.0,0.00032804,2]
[400321866,1767371444321,-151.0,0.00032877,31]
[400321867,1767371444331,-178.8,0.0003296,2]
[400321868,1767371444341,-342.01,0.0003296,2]
[400321869,1767371444351,-465.87,0.0003296,2]
[400321870,1767371444362,-178.8,0.0003296,2]
[400321871,1767371444372,-465.87,0.0003296,2]
[400321872,1767371444382,-465.87,0.0003296,2]
[400321873,1767371444391,-150.0,0.00033,14]
[400321874,1767371444401,-637.0,0.00033022,14]
[400321875,1767371444410,-1000.0,0.00033024,2]
[400321876,1767371444419,-458.92,0.00033165,2]
[400321877,1767371444430,-2833.333,0.000332,30]
[400321878,1767371444439,-2833.333,0.000332,30]
[400321879,1767371444449,-2833.33,0.000332,30]
[400321880,1767371444459,-637.0,0.00033632,15]
[400321881,1767371444468,-660.52,0.00033661,2]
[400321882,1767371444477,-660.52,0.00033661,2]
[400321883,1767371444486,-660.52,0.00033661,2]
[400321884,1767371444495,-660.52,0.00033661,2]
[400321885,1767371444504,-658.65,0.00033661,2]
[400321886,1767371444513,-230.36,0.000338,30]
[400321887,1767371444523,-803.3,0.00033899,2]
[400321888,1767371444533,-2056.40342792,0.00033959,2]
[400321889,1767371444542,-4788.86552605,0.00034003,2]
[400321890,1767371444552,-1000.0,0.00034137,2]
[400321891,1767371444561,-637.0,0.00034242,16]
[400321892,1767371444571,-163.45327626,0.00034285,2]
[400321893,1767371444581,-637.0,0.00034853,16]
[400321894,1767371444591,-300.0,0.00035,30]
[400321895,1767371444600,-325.0,0.00035,30]
[400321896,1767371444610,-350.0,0.00035,7]
[400321897,1767371444620,-157.26170446,0.00035005,7]
[400321898,1767371444630,-155.11388949,0.00035005,7]
[400321899,1767371444639,-253.19061817,0.00035005,7]
[400321900,1767371444648,-461.85160154,0.00035005,7]
[400321901,1767371444658,-152.56965734,0.00035005,7]
[400321902,1767371444667,-155.34,0.00035318,120]
[400321903,1767371444676,-474.3,0.00035342,2]
[400321904,1767371444686,-637.0,0.00035463,17]
[400321905,1767371444697,-2000.0,0.000355,2]
[400321906,1767371444707,-242.53565,0.000355,31]
[400321907,1767371444718,-242.53565,0.000355,31]
[400321908,1767371444727,-242.53565,0.000355,31]
[400321909,1767371444738,-242.53565,0.000355,31]
[400321910,1767371444748,-607.8,0.00035616,43]
[400321911,1767371444758,-472.32,0.00035616,18]
[400321912,1767371444768,-277.34214859,0.00035741,2]
[400321913,1767371444779,-1000.0,0.00035786,2]
[400321914,1767371444789,-3230.0,0.000358,120]
[400321915,1767371444798,-3230.0,0.000358,120]
[400321916,1767371444808,-3230.0,0.000358,120]
[400321917,1767371444818,-151.0,0.000358,31]
[400321918,1767371444827,-151.0,0.000358,31]
[400321919,1767371444836,-151.0,0.000358,31]
[400321920,1767371444846,-151.0,0.000358,31]
[400321921,1767371444856,-196.49,0.0003597,2]
[400321922,1767371444866,-1060.13,0.00036,30]
[400321923,1767371444878,-334.65,0.00036049,30]
[400321924,1767371444887,-637.0,0.00036073,17]
[400321925,1767371444897,-151.0,0.00036163,31]
[400321926,1767371444907,-151.0,0.00036163,31]
[400321927,1767371444917,-151.0,0.00036163,31]
[400321928,1767371444926,-2056.40342792,0.00036163,2]
[400321929,1767371444935,-465.18,0.00036164,2]
[400321930,1767371444945,-4788.86552605,0.00036197,2]
[400321931,1767371444955,-179.58,0.0003636,2]
[400321932,1767371444964,-163.45327626,0.00036409,2]
[400321933,1767371444974,-1008.0,0.000365,20]
[400321934,1767371444984,-637.0,0.00036683,18]
[400321935,1767371444994,-1060.13,0.0003672,30]
[400321936,1767371445210,-154.0,0.00037,120]
[400321937,1767371445223,-1002.0,0.00037,30]
[400321938,1767371445233,-489.87,0.00037041,2]
[400321939,1767371445243,-481.83,0.00037151,2]
[400321940,1767371445253,-465.87,0.0003726,2]
[400321941,1767371445264,-637.0,0.00037293,18]
[400321942,1767371445274,-198.85353178,0.000375,30]
[400321943,1767371445284,-534.08,0.00037808,60]
[400321944,1767371445294,-534.09,0.00037839,80]
[400321945,1767371445304,-387.19,0.00037863,2]
[400321946,1767371445314,-357.48,0.00037863,2]
[400321947,1767371445327,-465.87,0.00037863,2]
[400321948,1767371445337,-342.06,0.00037863,2]
[400321949,1767371445347,-534.08,0.00037869,100]
[400321950,1767371445358,-534.09,0.000379,120]
[400321951,1767371445368,-637.0,0.00037903,19]
[400321952,1767371445383,-602.92,0.00037973,2]
[400321953,1767371445393,-373.56,0.00037973,2]
[400321954,1767371445404,-171.08,0.00037973,2]
[400321955,1767371445415,-151.43,0.00037973,2]
[400321956,1767371445426,-565.35,0.00037973,2]
[400321957,1767371445436,-178.74,0.00037973,2]
[400321958,1767371445447,-150.0,0.00037973,2]
[400321959,1767371445456,-171.08,0.00037973,2]
[400321960,1767371445467,-465.64,0.00037973,2]
[400321961,1767371445477,-171.08,0.00037973,2]
[400321962,1767371445486,-150.0,0.00037973,2]
[400321963,1767371445496,-171.08,0.00037973,2]
[400321964,1767371445506,-150.0,0.00037973,2]
[400321965,1767371445516,-171.08,0.00037973,2]
[400321966,1767371445529,-150.0,0.00037973,2]
[400321967,1767371445539,-150.0,0.00037973,2]
[400321968,1767371445549,-171.08,0.00037973,2]
[400321969,1767371445559,-171.08,0.00037973,2]
[400321970,1767371445569,-171.08,0.00037973,2]
[400321971,1767371445579,-150.0,0.00037973,2]
[400321972,1767371445588,-171.08,0.00037973,2]
[400321973,1767371445597,-170.58,0.00037973,2]
[400321974,1767371445607,-150.0,0.00037973,2]
[400321975,1767371445616,-150.0,0.00037973,2]
[400321976,1767371445628,-644.7,0.00038005,5]
[400321977,1767371445637,-500.0,0.00038186,30]
[400321978,1767371445647,-500.0,0.00038186,30]
[400321979,1767371445658,-500.0,0.00038186,30]
[400321980,1767371445667,-500.0,0.00038186,30]
[400321981,1767371445678,-500.0,0.00038186,30]
[400321982,1767371445690,-500.0,0.00038186,30]
[400321983,1767371445701,-500.0,0.00038186,30]
[400321984,1767371445711,-666.86959405,0.00038186,30]
[400321985,1767371445720,-500.0,0.00038234,2]
[400321986,1767371445734,-500.0,0.00038235,2]
[400321987,1767371445745,-500.0,0.00038236,2]
[400321988,1767371445756,-500.0,0.00038237,2]
[400321989,1767371445767,-500.0,0.00038238,2]
[400321990,1767371445777,-500.0,0.00038239,2]
[400321991,1767371445786,-500.0,0.0003824,2]
[400321992,1767371445796,-500.0,0.00038241,2]
[400321993,1767371445806,-500.0,0.00038242,2]
[400321994,1767371445816,-500.0,0.00038243,2]
[400321995,1767371445826,-500.0,0.00038244,2]
[400321996,1767371445835,-500.0,0.00038245,2]
[400321997,1767371445845,-500.0,0.00038246,2]
[400321998,1767371445855,-500.0,0.00038247,2]
[400321999,1767371445864,-500.0,0.00038248,2]
[400322000,1767371445877,-500.0,0.00038249,2]
[400322001,1767371445887,-500.0,0.0003825,2]
[400322002,1767371445897,-500.0,0.00038251,2]
[400322003,1767371445907,-386.448222,0.00038256,31]
[400322004,1767371445916,-151.0,0.00038256,2]
[400322005,1767371445929,-386.448222,0.00038256,31]
[400322006,1767371445939,-151.0,0.00038256,2]
[400322007,1767371445948,-386.448222,0.00038256,31]
[400322008,1767371445959,-386.448222,0.00038256,31]
[400322009,1767371445969,-151.0,0.00038256,31]
[400322010,1767371445979,-750.343476,0.00038256,28]
[400322011,1767371445989,-750.343476,0.00038256,28]
[400322012,1767371445999,-750.343476,0.00038256,28]
[400322013,1767371446008,-750.343476,0.00038256,28]
[400322014,1767371446018,-151.0,0.00038256,31]
[400322015,1767371446028,-151.0,0.00038256,31]
[400322016,1767371446037,-151.0,0.00038256,31]
[400322017,1767371446048,-151.0,0.00038256,31]
[400322018,1767371446058,-185.984956,0.00038256,31]
[400322019,1767371446068,-8634.09,0.00038256,2]
[400322020,1767371446078,-5031.0,0.00038356,120]
[400322021,1767371446088,-151.0,0.00038356,14]
[400322022,1767371446098,-151.0,0.00038356,120]
[400322023,1767371446108,-151.0,0.00038356,30]
[400322024,1767371446122,-151.0,0.00038356,120]
[400322025,1767371446132,-151.0,0.00038356,120]
[400322026,1767371446142,-151.0,0.00038356,120]
[400322027,1767371446152,-151.0,0.00038356,120]
[400322028,1767371446162,-151.0,0.00038356,60]
[400322029,1767371446172,-151.0,0.00038356,60]
[400322030,1767371446182,-151.0,0.00038356,60]
[400322031,1767371446192,-252.321056,0.00038356,60]
[400322032,1767371446202,-151.0,0.00038356,120]
[400322033,1767371446211,-151.0,0.00038356,120]
[400322034,1767371446222,-151.0,0.00038356,120]
[400322035,1767371446232,-151.0,0.00038356,7]
[400322036,1767371446242,-151.0,0.00038356,7]
[400322037,1767371446252,-151.0,0.00038356,7]
[400322038,1767371446263,-242.53565,0.00038356,120]
[400322039,1767371446273,-242.53565,0.00038356,120]
[400322040,1767371446283,-242.53565,0.00038356,120]
[400322041,1767371446292,-242.53565,0.00038356,120]
[400322042,1767371446303,-159.997985,0.00038356,120]
[400322043,1767371446312,-159.997985,0.00038356,120]
[400322044,1767371446324,-159.997985,0.00038356,120]
[400322046,1767371446334,-159.997985,0.00038356,120]
[400322047,1767371446344,-159.997985,0.00038356,120]
[400322048,1767371446354,-159.997985,0.00038356,120]
[400322049,1767371446364,-159.997985,0.00038356,120]
[400322050,1767371446374,-159.997985,0.00038356,120]
[400322051,1767371446384,-186.583585,0.00038356,120]
[400322052,1767371446396,-169.484848,0.00038356,120]
[400322053,1767371446406,-151.0,0.00038356,120]
[400322054,1767371446417,-174.727698,0.00038356,120]
[400322055,1767371446426,-169.731844,0.00038356,120]
[400322056,1767371446436,-174.746598,0.00038356,120]
[400322057,1767371446446,-151.0,0.00038356,120]
[400322059,1767371446456,-151.0,0.00038356,120]
[400322061,1767371446467,-151.0,0.00038356,120]
[400322063,1767371446478,-151.0,0.00038356,120]
[400322065,1767371446487,-156.782904,0.00038356,120]
[400322067,1767371446498,-151.0,0.00038356,120]
[400322069,1767371446508,-151.0,0.00038356,120]
[400322071,1767371446518,-151.0,0.00038356,10]
[400322073,1767371446528,-151.0,0.00038356,10]
[400322075,1767371446538,-151.0,0.00038356,10]
[400322077,1767371446547,-151.0,0.00038356,10]
[400322079,1767371446557,-151.0,0.00038356,10]
[400322081,1767371446567,-240.763643,0.00038356,10]
[400322082,1767371446576,-151.0,0.00038356,120]
[400322083,1767371446586,-151.0,0.00038356,120]
[400322084,1767371446597,-151.0,0.00038356,120]
[400322085,1767371446607,-174.856464,0.00038356,120]
[400322086,1767371446617,-161.041107,0.00038356,120]
[400322087,1767371446629,-151.0,0.00038356,120]
[400322088,1767371446638,-248.655649,0.00038356,120]
[400322089,1767371446648,-248.655649,0.00038356,120]
[400322090,1767371446658,-248.655649,0.00038356,120]
[400322091,1767371446668,-248.655649,0.00038356,120]
[400322092,1767371446678,-151.0,0.00038356,120]
[400322093,1767371446689,-156.009387,0.00038356,120]
[400322094,1767371446701,-151.0,0.00038356,120]
[400322095,1767371446711,-151.0,0.00038356,120]
[400322096,1767371446730,-151.0,0.00038356,120]
[400322097,1767371446741,-165.845369,0.00038356,120]
[400322098,1767371446752,-151.0,0.00038356,120]
[400322099,1767371446762,-171.60871,0.00038356,120]
[400322100,1767371446773,-159.995941,0.00038356,120]
[400322101,1767371446782,-173.578425,0.00038356,120]
[400322102,1767371446792,-404.681729,0.00038356,120]
[400322103,1767371446804,-404.681729,0.00038356,120]
[400322104,1767371446815,-404.681729,0.00038356,120]
[400322105,1767371446825,-404.681729,0.00038356,120]
[400322106,1767371446836,-404.681729,0.00038356,120]
[400322107,1767371446846,-151.0,0.00038356,120]
[400322108,1767371446856,-404.681729,0.00038356,120]
[400322109,1767371446865,-151.0,0.00038356,120]
[400322110,1767371446876,-404.681729,0.00038356,120]
[400322111,1767371446886,-404.681729,0.00038356,120]
[400322112,1767371446896,-151.0,0.00038356,120]
[400322113,1767371446905,-158.946115,0.00038356,120]
[400322114,1767371446915,-151.0,0.00038356,120]
[400322115,1767371446925,-151.0,0.00038356,120]
[400322116,1767371446935,-151.0,0.00038356,120]
[400322117,1767371446945,-151.0,0.00038356,120]
[400322118,1767371446955,-151.0,0.00038356,120]
[400322119,1767371446966,-151.0,0.00038356,120]
[400322120,1767371446975,-151.0,0.00038356,120]
[400322121,1767371446985,-151.0,0.00038356,120]
[400322122,1767371446996,-151.0,0.00038356,120]
[400322123,1767371447006,-296.644832,0.00038356,120]
[400322124,1767371447015,-151.0,0.00038356,120]
[400322125,1767371447025,-151.0,0.00038356,120]
[400322126,1767371447035,-151.0,0.00038356,120]
[400322127,1767371447044,-252.954636,0.00038356,120]
[400322128,1767371447054,-277.685279,0.00038356,120]
[400322129,1767371447064,-227.459486,0.00038356,120]
[400322130,1767371447074,-187.965024,0.00038356,120]
[400322131,1767371447084,-173.544428,0.00038356,120]
[400322132,1767371447093,-233.684175,0.00038356,120]
[400322133,1767371447103,-151.0,0.00038356,120]
[400322134,1767371447113,-215.43556,0.00038356,120]
[400322135,1767371447124,-205.032502,0.00038356,120]
[400322136,1767371447133,-151.0,0.00038356,120]
[400322137,1767371447143,-250.802181,0.00038356,120]
[400322138,1767371447153,-294.740602,0.00038356,120]
[400322139,1767371447162,-151.0,0.00038356,120]
[400322140,1767371447172,-877.557986,0.00038356,15]
[400322141,1767371447181,-877.557986,0.00038356,15]
[400322142,1767371447193,-151.0,0.00038356,120]
[400322143,1767371447203,-877.557986,0.00038356,15]
[400322144,1767371447212,-877.557986,0.00038356,15]
[400322145,1767371447222,-151.0,0.00038356,120]
[400322146,1767371447231,-877.557986,0.00038356,15]
[400322147,1767371447241,-151.0,0.00038356,120]
[400322148,1767371447250,-877.557986,0.00038356,15]
[400322149,1767371447260,-877.557986,0.00038356,15]
[400322150,1767371447270,-877.557986,0.00038356,15]
[400322151,1767371447279,-605.514221,0.00038356,120]
[400322152,1767371447288,-605.514221,0.00038356,120]
[400322153,1767371447298,-605.514221,0.00038356,120]
[400322154,1767371447308,-605.514221,0.00038356,120]
[400322155,1767371447318,-605.514221,0.00038356,120]
[400322156,1767371447327,-605.514221,0.00038356,120]
[400322157,1767371447337,-605.514221,0.00038356,120]
[400322158,1767371447347,-605.514221,0.00038356,120]
[400322159,1767371447356,-151.0,0.00038356,120]
[400322160,1767371447365,-151.0,0.00038356,120]
[400322161,1767371447375,-151.0,0.00038356,120]
[400322162,1767371447385,-151.0,0.00038356,120]
[400322163,1767371447395,-151.0,0.00038356,120]
[400322164,1767371447405,-151.0,0.00038356,120]
[400322165,1767371447414,-151.0,0.00038356,120]
[400322166,1767371447423,-151.0,0.00038356,120]
[400322167,1767371447433,-151.0,0.00038356,120]
[400322168,1767371447442,-151.0,0.00038356,120]
[400322169,1767371447452,-151.0,0.00038356,120]
[400322170,1767371447461,-151.0,0.00038356,120]
[400322171,1767371447470,-160.722445,0.00038356,120]
[400322172,1767371447480,-226.114132,0.00038356,120]
[400322173,1767371447489,-151.0,0.00038356,120]
[400322174,1767371447500,-151.0,0.00038356,120]
[400322175,1767371447510,-151.0,0.00038356,120]
[400322176,1767371447521,-177.040774,0.00038356,120]
[400322177,1767371447531,-260.847285,0.00038356,120]
[400322178,1767371447540,-260.847285,0.00038356,120]
[400322179,1767371447551,-260.847285,0.00038356,120]
[400322180,1767371447561,-260.847285,0.00038356,120]
[400322181,1767371447571,-271.929878,0.00038356,120]
[400322182,1767371447582,-271.929878,0.00038356,120]
[400322183,1767371447591,-260.847285,0.00038356,120]
[400322184,1767371447601,-246.936246,0.00038356,120]
[400322185,1767371447610,-260.847285,0.00038356,120]
[400322186,1767371447619,-271.929878,0.00038356,120]
[400322187,1767371447629,-271.929878,0.00038356,120]
[400322188,1767371447639,-260.847285,0.00038356,120]
[400322189,1767371447649,-260.847285,0.00038356,120]
[400322190,1767371447658,-271.929878,0.00038356,120]
[400322191,1767371447667,-271.929878,0.00038356,120]
[400322192,1767371447676,-271.929878,0.00038356,120]
[400322193,1767371447686,-151.0,0.00038356,120]
[400322194,1767371447696,-271.929878,0.00038356,120]
[400322195,1767371447707,-151.0,0.00038356,120]
[400322196,1767371447716,-151.0,0.00038356,120]
[400322197,1767371447726,-151.0,0.00038356,120]
[400322198,1767371447737,-151.0,0.00038356,120]
[400322199,1767371447824,-151.0,0.00038356,120]
[400322200,1767371447834,-171.327704,0.00038356,120]
[400322201,1767371447843,-151.0,0.00038356,120]
[400322202,1767371447852,-171.327704,0.00038356,120]
[400322203,1767371447861,-151.0,0.00038356,120]
[400322204,1767371447870,-171.327704,0.00038356,120]
[400322205,1767371447881,-151.0,0.00038356,120]
[400322206,1767371447890,-171.327704,0.00038356,120]
[400322207,1767371447898,-170.882992,0.00038356,120]
[400322208,1767371447907,-171.327704,0.00038356,120]
[400322209,1767371447917,-171.327704,0.00038356,120]
[400322210,1767371447926,-152.259532,0.00038356,120]
[400322211,1767371447936,-152.259532,0.00038356,120]
[400322212,1767371447945,-171.327704,0.00038356,120]
[400322213,1767371447955,-171.327704,0.00038356,120]
[400322214,1767371447964,-152.259532,0.00038356,120]
[400322215,1767371447973,-152.259532,0.00038356,120]
[400322216,1767371447982,-152.259532,0.00038356,120]
[400322217,1767371447991,-152.259532,0.00038356,120]
[400322218,1767371448001,-152.259532,0.00038356,120]
[400322219,1767371448012,-152.259532,0.00038356,120]
[400322220,1767371448021,-151.0,0.00038356,120]
[400322221,1767371448032,-151.0,0.00038356,120]
[400322222,1767371448041,-179.832123,0.00038356,120]
[400322223,1767371448050,-206.590217,0.00038356,120]
[400322224,1767371448059,-292.976399,0.00038356,120]
[400322225,1767371448068,-292.976399,0.00038356,120]
[400322226,1767371448078,-292.976399,0.00038356,120]
[400322227,1767371448087,-151.0,0.00038356,120]
[400322228,1767371448097,-151.0,0.00038356,120]
[400322229,1767371448106,-151.0,0.00038356,120]
[400322230,1767371448115,-292.976399,0.00038356,120]
[400322231,1767371448125,-151.0,0.00038356,120]
[400322232,1767371448134,-160.862574,0.00038356,120]
[400322233,1767371448143,-151.0,0.00038356,120]
[400322234,1767371448153,-151.0,0.00038356,120]
[400322235,1767371448162,-151.0,0.00038356,120]
[400322236,1767371448171,-160.862574,0.00038356,120]
[400322237,1767371448180,-251.038628,0.00038356,120]
[400322238,1767371448190,-160.862574,0.00038356,120]
[400322239,1767371448199,-160.862574,0.00038356,120]
[400322240,1767371448208,-151.0,0.00038356,120]
[400322241,1767371448217,-151.0,0.00038356,120]
[400322242,1767371448226,-358.643444,0.00038356,120]
[400322243,1767371448236,-151.0,0.00038356,120]
[400322244,1767371448245,-358.643444,0.00038356,120]
[400322245,1767371448255,-151.0,0.00038356,120]
[400322246,1767371448266,-358.643444,0.00038356,120]
[400322247,1767371448275,-165.77811,0.00038356,120]
[400322248,1767371448284,-358.643444,0.00038356,120]
[400322249,1767371448294,-165.77811,0.00038356,120]
[400322250,1767371448304,-151.0,0.00038356,120]
[400322251,1767371448314,-165.77811,0.00038356,120]
[400322252,1767371448324,-151.0,0.00038356,120]
[400322253,1767371448333,-204.87027,0.00038356,120]
[400322254,1767371448343,-165.77811,0.00038356,120]
[400322255,1767371448353,-154.15801,0.00038356,120]
[400322256,1767371448363,-151.0,0.00038356,120]
[400322257,1767371448372,-204.87027,0.00038356,120]
[400322258,1767371448383,-204.87027,0.00038356,120]
[400322259,1767371448393,-204.87027,0.00038356,120]
[400322260,1767371448402,-151.0,0.00038356,120]
[400322261,1767371448412,-151.0,0.00038356,120]
[400322262,1767371448421,-2056.40342792,0.00038368,2]
[400322263,1767371448431,-150.20213798,0.00038466,7]
[400322264,1767371448440,-150.0,0.00038466,7]
[400322265,1767371448449,-150.0,0.00038466,7]
[400322266,1767371448458,-150.0,0.00038466,7]
[400322267,1767371448468,-150.0,0.00038466,7]
[400322268,1767371448478,-150.20091821,0.00038466,7]
[400322269,1767371448488,-150.0,0.00038466,7]
[400322270,1767371448497,-150.0,0.00038466,7]
[400322271,1767371448507,-256.56079254,0.00038466,7]
[400322272,1767371448516,-150.0,0.00038466,7]
[400322273,1767371448525,-150.0,0.00038466,7]
[400322274,1767371448534,-150.0,0.00038466,7]
[400322275,1767371448546,-150.36661872,0.00038466,7]
[400322276,1767371448555,-150.0,0.00038466,7]
[400322277,1767371448564,-150.0,0.00038466,7]
[400322278,1767371448574,-150.0,0.00038466,7]
[400322279,1767371448584,-151.0,0.00038466,120]
[400322280,1767371448593,-151.0,0.00038466,120]
[400322281,1767371448603,-151.0,0.00038466,120]
[400322282,1767371448612,-151.0,0.00038466,120]
[400322283,1767371448621,-248.655649,0.00038466,120]
[400322284,1767371448633,-248.655649,0.00038466,120]
[400322285,1767371448642,-248.655649,0.00038466,120]
[400322286,1767371448652,-248.655649,0.00038466,120]
[400322287,1767371448661,-170.065405,0.00038466,120]
[400322288,1767371448671,-161.120837,0.00038466,120]
[400322289,1767371448681,-1352.2,0.0003849,5]
[400322290,1767371448693,-13656.666,0.000385,120]
[400322291,1767371448706,-13656.666,0.000385,120]
[400322292,1767371448716,-13656.66,0.000385,120]
[400322293,1767371448725,-151.0,0.000385,120]
[400322294,1767371448735,-151.0,0.000385,120]
[400322295,1767371448744,-151.0,0.000385,120]
[400322296,1767371448754,-151.0,0.000385,120]
[400322297,1767371448763,-151.0,0.000385,120]
[400322298,1767371448774,-228.38,0.000385,14]
[400322299,1767371448783,-292.976399,0.000385,120]
[400322300,1767371448792,-292.976399,0.000385,120]
[400322301,1767371448803,-778.77,0.000385,14]
[400322302,1767371448814,-292.976399,0.000385,120]
[400322303,1767371448823,-151.0,0.000385,120]
[400322304,1767371448832,-292.976399,0.000385,120]
[400322305,1767371448841,-151.0,0.000385,120]
[400322306,1767371448850,-160.862574,0.000385,120]
[400322307,1767371448861,-151.0,0.000385,120]
[400322308,1767371448870,-160.862574,0.000385,120]
[400322309,1767371448885,-160.862574,0.000385,120]
[400322310,1767371448896,-160.862574,0.000385,120]
[400322311,1767371448907,-151.0,0.000385,120]
[400322312,1767371448917,-358.643444,0.000385,120]
[400322313,1767371448926,-151.0,0.000385,120]
[400322314,1767371448935,-155.471863,0.000385,120]
[400322315,1767371448945,-358.643444,0.000385,120]
[400322316,1767371448954,-208.213406,0.000385,120]
[400322317,1767371448964,-358.643444,0.000385,120]
[400322318,1767371448973,-165.77811,0.000385,120]
[400322319,1767371448982,-358.643444,0.000385,120]
[400322320,1767371448992,-165.77811,0.000385,120]
[400322321,1767371449002,-151.0,0.000385,120]